fUST/lending_fUST_20250625
["ID","MTS","AMOUNT","RATE_DAILY","PERIOD"]
[367511109,1750837842341,-618.0,0.00017123,2]
[367511110,1750837842350,-500.0,0.00017124,2]
[367511113,1750837842360,-500.0,0.00017124,2]
[367511115,1750837842369,-438.99,0.00017148,2]
[367511117,1750837842379,-460.0,0.00017148,2]
[367511119,1750837842388,-519.21,0.00017148,2]
[367511121,1750837842397,-460.0,0.00017148,2]
[367511123,1750837842406,-3743.46,0.00017148,2]
[367511125,1750837842415,-1480.22,0.00017148,2]
[367511127,1750837842425,-460.0,0.00017148,2]
[367511129,1750837842434,-4733.57,0.00017148,2]
[367511130,1750837842443,-460.0,0.00017148,2]
[367511133,1750837842455,-800.55,0.00017148,2]
[367511135,1750837842464,-517.68,0.00017148,2]
[367511137,1750837842474,-5183.74,0.00017148,2]
[367511139,1750837842483,-460.0,0.00017148,2]
[367511141,1750837842493,-893.87,0.00017148,2]
[367511143,1750837842502,-254.55860655,0.00017149,2]
[367511145,1750837842512,-460.0,0.00017149,2]
[367511147,1750837842522,-460.0,0.00017149,2]
[367511149,1750837842531,-711.73,0.00017149,2]
[367511151,1750837842540,-1175.65,0.00017149,2]
[367511153,1750837842550,-460.0,0.00017149,2]
[367511155,1750837842559,-460.0,0.00017149,2]
[367511157,1750837842569,-1033.35,0.00017149,2]
[367511159,1750837842578,-460.0,0.00017149,2]
[367511161,1750837842587,-460.0,0.00017149,2]
[367511163,1750837842597,-460.0,0.00017149,2]
[367511164,1750837842606,-460.0,0.00017149,2]
[367511166,1750837842615,-460.0,0.00017149,2]
[367511168,1750837842624,-460.0,0.00017149,2]
[367511170,1750837842633,-1027.55,0.00017149,2]
[367511173,1750837842644,-460.0,0.00017149,2]
[367511175,1750837842654,-460.0,0.00017149,2]
[367511177,1750837842663,-460.0,0.00017149,2]
[367511179,1750837842672,-460.0,0.00017149,2]
[367511181,1750837842682,-15762.09,0.00017149,2]
[367511183,1750837842691,-460.0,0.00017149,2]
[367511185,1750837842700,-1899.52,0.00017149,2]
[367511187,1750837842709,-460.0,0.00017149,2]
[367511189,1750837842719,-460.0,0.00017149,2]
[367511191,1750837842728,-830.33,0.00017149,2]
[367511193,1750837842738,-618.0,0.0001715,2]
[367511195,1750837842747,-460.0,0.0001715,2]
[367511197,1750837842756,-460.0,0.0001715,2]
[367511199,1750837842767,-309.06,0.0001715,2]
[367511201,1750837842776,-460.0,0.0001715,2]
[367511203,1750837842785,-460.0,0.0001715,2]
[367511205,1750837842794,-460.0,0.0001715,2]
[367511207,1750837842804,-460.0,0.0001715,2]
[367511209,1750837842814,-286.84428964,0.0001715,2]
[367511211,1750837842823,-460.0,0.0001715,2]
[367511213,1750837842832,-460.0,0.0001715,2]
[367511215,1750837842842,-460.0,0.0001715,2]
[367511217,1750837842851,-440.05,0.0001715,2]
[367511219,1750837842860,-504.75860816,0.0001715,2]
[367511221,1750837842870,-460.0,0.0001715,2]
[367511223,1750837842879,-460.0,0.0001715,2]
[367511225,1750837842888,-460.0,0.0001715,2]
[367511227,1750837842897,-460.0,0.0001715,2]
[367511229,1750837842907,-426.99,0.0001715,2]
[367511231,1750837842916,-460.0,0.0001715,2]
[367511233,1750837842926,-460.0,0.0001715,2]
[367511235,1750837842935,-460.0,0.0001715,2]
[367511236,1750837842944,-460.0,0.0001715,2]
[367511237,1750837842953,-460.0,0.0001715,2]
[367511238,1750837842963,-460.0,0.0001715,2]
[367511239,1750837842972,-460.0,0.0001715,2]
[367511240,1750837842981,-906.84,0.0001715,2]
[367511241,1750837842990,-355.58538406,0.0001715,2]
[367511242,1750837842999,-877.48,0.0001715,2]
[367511243,1750837843008,-518.39,0.0001715,2]
[367511244,1750837843017,-460.0,0.0001715,2]
[367511245,1750837843027,-460.0,0.0001715,2]
[367511246,1750837843036,-460.0,0.0001715,2]
[367511247,1750837843045,-460.0,0.0001715,2]
[367511248,1750837843057,-460.0,0.0001715,2]
[367511249,1750837843066,-688.52,0.0001715,2]
[367511250,1750837843076,-896.9,0.0001715,2]
[367511252,1750837843085,-460.0,0.0001715,2]
[367511254,1750837843095,-9452.46,0.0001715,2]
[367511256,1750837843104,-460.0,0.0001715,2]
[367511258,1750837843114,-1053.69,0.0001715,2]
[367511260,1750837843123,-1073.51,0.0001715,2]
[367511262,1750837843132,-460.0,0.0001715,2]
[367511264,1750837843142,-460.0,0.0001715,2]
[367511266,1750837843152,-673.08,0.0001715,2]
[367511268,1750837843161,-460.0,0.0001715,2]
[367511270,1750837843171,-460.0,0.0001715,2]
[367511272,1750837843180,-460.0,0.0001715,2]
[367511274,1750837843189,-460.0,0.0001715,2]
[367511277,1750837843199,-460.0,0.0001715,2]
[367511279,1750837843209,-460.0,0.0001715,2]
[367511281,1750837843219,-460.0,0.0001715,2]
[367511283,1750837843228,-500.0,0.00017151,2]
[367511286,1750837843237,-250.36135806,0.00017151,2]
[367511289,1750837843247,-460.0,0.00017151,2]
[367511291,1750837843256,-460.0,0.00017151,2]
[367511293,1750837843265,-359.92,0.00017152,2]
[367511295,1750837843275,-460.0,0.00017152,2]
[367511297,1750837843284,-460.0,0.00017152,2]
[367511299,1750837843294,-460.0,0.00017152,2]
[367511301,1750837843304,-460.0,0.00017152,2]
[367511304,1750837843313,-490.0,0.00017152,2]
[367511307,1750837843323,-460.0,0.00017152,2]
[367511309,1750837843332,-460.0,0.00017152,2]
[367511311,1750837843341,-460.0,0.00017152,2]
[367511313,1750837843351,-378.96501003,0.00017152,2]
[367511315,1750837843361,-460.0,0.00017152,2]
[367511317,1750837843370,-460.0,0.00017152,2]
[367511319,1750837843380,-500.0,0.00017153,2]
[367511321,1750837843390,-540.0,0.00017153,2]
[367511323,1750837843399,-483.96401752,0.00017153,2]
[367511325,1750837843408,-851.9,0.00017153,2]
[367511327,1750837843418,-460.0,0.00017154,2]
[367511329,1750837843427,-460.0,0.00017154,2]
[367511331,1750837843436,-618.0,0.00017177,2]
[367511333,1750837843446,-350.91885301,0.00017178,2]
[367511335,1750837843455,-618.0,0.00017205,2]
[367511336,1750837843464,-338.9,0.00017205,2]
[367511338,1750837843473,-618.0,0.00017232,2]
[367511340,1750837843483,-618.0,0.0001726,2]
[367511342,1750837843492,-618.0,0.00017287,2]
[367511344,1750837843501,-618.0,0.00017314,2]
[367511346,1750837843511,-6210.49279253,0.00017324,2]
[367511348,1750837843520,-618.0,0.00017342,2]
[367511350,1750837843530,-500.0,0.00017362,2]
[367511352,1750837843539,-500.0,0.00017362,2]
[367511354,1750837843549,-500.0,0.00017362,2]
[367511356,1750837843558,-618.0,0.00017369,2]
[367511358,1750837843567,-500.0,0.00017385,2]
[367511360,1750837843577,-501.28542813,0.00017385,2]
[367511362,1750837843586,-500.0,0.00017385,2]
[367511364,1750837843596,-176.42018452,0.00017385,2]
[367511366,1750837843605,-618.0,0.00017397,2]
[367511368,1750837843614,-460.0,0.00017422,2]
[367511370,1750837843623,-519.21,0.00017422,2]
[367511372,1750837843633,-3743.46,0.00017422,2]
[367511374,1750837843643,-1480.22,0.00017422,2]
[367511376,1750837843652,-232.12,0.00017422,2]
[367511378,1750837843662,-4733.57,0.00017422,2]
[367511380,1750837843671,-460.0,0.00017422,2]
[367511382,1750837843681,-800.55,0.00017422,2]
[367511384,1750837843691,-517.68,0.00017422,2]
[367511386,1750837843700,-5183.74,0.00017422,2]
[367511388,1750837843710,-460.0,0.00017422,2]
[367511390,1750837843719,-893.87,0.00017422,2]
[367511392,1750837843728,-250.6052694,0.00017423,2]
[367511394,1750837843737,-600.57,0.00017423,2]
[367511396,1750837843747,-711.73,0.00017423,2]
[367511398,1750837843756,-1175.65,0.00017423,2]
[367511400,1750837843766,-460.0,0.00017423,2]
[367511402,1750837843775,-460.0,0.00017423,2]
[367511404,1750837843785,-1033.35,0.00017423,2]
[367511406,1750837843795,-460.0,0.00017423,2]
[367511408,1750837843805,-460.0,0.00017423,2]
[367511410,1750837843815,-460.0,0.00017423,2]
[367511412,1750837843825,-460.0,0.00017423,2]
[367511414,1750837843834,-460.0,0.00017423,2]
[367511416,1750837843844,-1027.55,0.00017423,2]
[367511418,1750837843853,-460.0,0.00017423,2]
[367511420,1750837843863,-460.0,0.00017423,2]
[367511422,1750837843872,-460.0,0.00017423,2]
[367511424,1750837843881,-460.0,0.00017423,2]
[367511426,1750837843891,-15762.09,0.00017423,2]
[367511428,1750837843901,-460.0,0.00017423,2]
[367511430,1750837843910,-1899.52,0.00017423,2]
[367511432,1750837843919,-460.0,0.00017423,2]
[367511434,1750837843928,-460.0,0.00017423,2]
[367511436,1750837843937,-830.33,0.00017423,2]
[367511438,1750837843946,-618.0,0.00017424,2]
[367511440,1750837843956,-460.0,0.00017424,2]
[367511442,1750837843965,-460.0,0.00017424,2]
[367511444,1750837843974,-460.0,0.00017424,2]
[367511446,1750837843983,-460.0,0.00017424,2]
[367511448,1750837843992,-460.0,0.00017424,2]
[367511450,1750837844001,-460.0,0.00017424,2]
[367511452,1750837844011,-460.0,0.00017424,2]
[367511454,1750837844020,-460.0,0.00017424,2]
[367511456,1750837844029,-460.0,0.00017424,2]
[367511458,1750837844040,-460.0,0.00017424,2]
[367511460,1750837844049,-460.0,0.00017424,2]
[367511462,1750837844062,-460.0,0.00017424,2]
[367511464,1750837844072,-534.63,0.00017424,2]
[367511466,1750837844082,-460.0,0.00017424,2]
[367511468,1750837844091,-496.71,0.00017424,2]
[367511470,1750837844102,-460.0,0.00017424,2]
[367511472,1750837844112,-460.0,0.00017424,2]
[367511474,1750837844121,-460.0,0.00017424,2]
[367511476,1750837844131,-906.84,0.00017424,2]
[367511478,1750837844140,-877.48,0.00017424,2]
[367511480,1750837844150,-460.0,0.00017424,2]
[367511482,1750837844160,-460.0,0.00017424,2]
[367511484,1750837844169,-460.0,0.00017424,2]
[367511486,1750837844178,-460.0,0.00017424,2]
[367511488,1750837844188,-460.0,0.00017424,2]
[367511490,1750837844197,-688.52,0.00017424,2]
[367511492,1750837844206,-896.9,0.00017424,2]
[367511495,1750837844216,-460.0,0.00017424,2]
[367511497,1750837844226,-9452.46,0.00017424,2]
[367511499,1750837844235,-460.0,0.00017424,2]
[367511500,1750837844244,-1053.69,0.00017424,2]
[367511503,1750837844253,-1073.51,0.00017424,2]
[367511505,1750837844262,-563.95,0.00017424,2]
[367511507,1750837844271,-460.0,0.00017424,2]
[367511508,1750837844280,-673.08,0.00017424,2]
[367511511,1750837844290,-460.0,0.00017424,2]
[367511513,1750837844300,-460.0,0.00017424,2]
[367511515,1750837844309,-460.0,0.00017424,2]
[367511517,1750837844319,-460.0,0.00017424,2]
[367511518,1750837844328,-460.0,0.00017424,2]
[367511521,1750837844338,-460.0,0.00017424,2]
[367511522,1750837844347,-169.2674609,0.00017425,2]
[367511524,1750837844358,-580.42,0.00017426,2]
[367511526,1750837844367,-460.0,0.00017426,2]
[367511528,1750837844376,-460.0,0.00017426,2]
[367511530,1750837844385,-460.0,0.00017426,2]
[367511532,1750837844394,-192.37223443,0.00017426,2]
[367511535,1750837844404,-460.0,0.00017426,2]
[367511537,1750837844413,-851.9,0.00017427,2]
[367511539,1750837844422,-460.0,0.00017428,2]
[367511541,1750837844431,-460.0,0.00017428,2]
[367511543,1750837844441,-500.0,0.00017433,2]
[367511545,1750837844450,-501.24090785,0.00017433,2]
[367511547,1750837844460,-502.23501126,0.00017433,2]
[367511549,1750837844469,-204.18694135,0.00017433,2]
[367511551,1750837844479,-500.0,0.00017433,2]
[367511553,1750837844490,-500.0,0.00017433,2]
[367511555,1750837844499,-500.0,0.00017436,2]
[367511557,1750837844510,-618.0,0.00017451,2]
[367511559,1750837844519,-618.0,0.00017479,2]
[367511561,1750837844528,-625.47422991,0.00017506,2]
[367511563,1750837844538,-500.0,0.00017593,2]
[367511565,1750837844547,-502.42028969,0.00017593,2]
[367511567,1750837844556,-500.0,0.00017593,2]
[367511569,1750837844565,-500.0,0.00017593,2]
[367511571,1750837844575,-500.0,0.00017593,2]
[367511573,1750837844584,-3536.35467108,0.00017595,2]
[367511575,1750837844594,-460.0,0.00017696,2]
[367511577,1750837844602,-519.21,0.00017696,2]
[367511579,1750837844611,-3743.46,0.00017696,2]
[367511581,1750837844621,-1480.22,0.00017696,2]
[367511583,1750837844630,-4733.57,0.00017696,2]
[367511585,1750837844639,-460.0,0.00017696,2]
[367511587,1750837844649,-800.55,0.00017696,2]
[367511589,1750837844658,-517.68,0.00017696,2]
[367511591,1750837844667,-5183.74,0.00017696,2]
[367511593,1750837844676,-460.0,0.00017696,2]
[367511595,1750837844685,-893.87,0.00017696,2]
[367511597,1750837844694,-711.73,0.00017697,2]
[367511599,1750837844703,-1175.65,0.00017697,2]
[367511601,1750837844712,-460.0,0.00017697,2]
[367511603,1750837844722,-460.0,0.00017697,2]
[367511605,1750837844731,-1033.35,0.00017697,2]
[367511607,1750837844740,-460.0,0.00017697,2]
[367511609,1750837844749,-460.0,0.00017697,2]
[367511611,1750837844759,-460.0,0.00017697,2]
[367511613,1750837844768,-460.0,0.00017697,2]
[367511615,1750837844778,-460.0,0.00017697,2]
[367511617,1750837844787,-1027.55,0.00017697,2]
[367511619,1750837844796,-460.0,0.00017697,2]
[367511621,1750837844805,-460.0,0.00017697,2]
[367511623,1750837844814,-460.0,0.00017697,2]
[367511625,1750837844823,-15762.09,0.00017697,2]
[367511627,1750837844833,-460.0,0.00017697,2]
[367511629,1750837844842,-1899.52,0.00017697,2]
[367511632,1750837844852,-460.0,0.00017697,2]
[367511634,1750837844861,-460.0,0.00017697,2]
[367511636,1750837844870,-830.33,0.00017697,2]
[367511638,1750837844880,-500.0,0.00017698,2]
[367511640,1750837844889,-460.0,0.00017698,2]
[367511642,1750837844899,-460.0,0.00017698,2]
[367511644,1750837844908,-364.01372938,0.00017698,2]
[367511646,1750837844917,-460.0,0.00017698,2]
[367511648,1750837844927,-460.0,0.00017698,2]
[367511650,1750837844936,-460.0,0.00017698,2]
[367511652,1750837844946,-460.0,0.00017698,2]
[367511654,1750837844955,-460.0,0.00017698,2]
[367511656,1750837844964,-460.0,0.00017698,2]
[367511658,1750837844973,-460.0,0.00017698,2]
[367511660,1750837844982,-460.0,0.00017698,2]
[367511662,1750837844992,-460.0,0.00017698,2]
[367511677,1750837845127,-460.0,0.00017698,2]
[367511679,1750837845138,-460.0,0.00017698,2]
[367511681,1750837845147,-906.84,0.00017698,2]
[367511683,1750837845156,-877.48,0.00017698,2]
[367511685,1750837845166,-460.0,0.00017698,2]
[367511687,1750837845176,-460.0,0.00017698,2]
[367511689,1750837845185,-460.0,0.00017698,2]
[367511691,1750837845194,-460.0,0.00017698,2]
[367511693,1750837845204,-460.0,0.00017698,2]
[367511695,1750837845213,-688.52,0.00017698,2]
[367511697,1750837845222,-896.9,0.00017698,2]
[367511699,1750837845232,-460.0,0.00017698,2]
[367511701,1750837845242,-9452.46,0.00017698,2]
[367511703,1750837845251,-460.0,0.00017698,2]
[367511705,1750837845260,-1053.69,0.00017698,2]
[367511707,1750837845269,-1073.51,0.00017698,2]
[367511709,1750837845279,-460.0,0.00017698,2]
[367511711,1750837845288,-673.08,0.00017698,2]
[367511713,1750837845298,-460.0,0.00017698,2]
[367511714,1750837845307,-460.0,0.00017698,2]
[367511715,1750837845316,-460.0,0.00017698,2]
[367511716,1750837845326,-257.14,0.00017698,2]
[367511718,1750837845335,-460.0,0.00017698,2]
[367511720,1750837845345,-366.0085437,0.00017699,2]
[367511722,1750837845354,-366.0085437,0.00017699,2]
[367511723,1750837845364,-366.0085437,0.00017699,2]
[367511726,1750837845374,-366.0085437,0.00017699,2]
[367511728,1750837845383,-366.0085437,0.00017699,2]
[367511730,1750837845392,-366.0085437,0.00017699,2]
[367511731,1750837845402,-366.0085437,0.00017699,2]
[367511734,1750837845411,-346.5581584,0.00017699,2]
[367511736,1750837845421,-460.0,0.000177,2]
[367511737,1750837845430,-460.0,0.000177,2]
[367511740,1750837845439,-479.93,0.000177,2]
[367511742,1750837845448,-460.0,0.000177,2]
[367511744,1750837845458,-500.0,0.00017701,2]
[367511746,1750837845467,-851.9,0.00017701,2]
[367511748,1750837845476,-151.0,0.00017702,2]
[367511750,1750837845486,-460.0,0.00017702,2]
[367511752,1750837845495,-460.0,0.00017702,2]
[367511754,1750837845505,-153.0,0.00017726,2]
[367511756,1750837845514,-153.0,0.00017726,2]
[367511758,1750837845523,-153.0,0.0001789,2]
[367511760,1750837845533,-153.0,0.0001789,2]
[367511762,1750837845542,-1000.0,0.0001791,2]
[367511764,1750837845552,-423.7745166,0.00017934,2]
[367511766,1750837845561,-460.0,0.00017944,2]
[367511768,1750837845570,-460.0,0.0001797,2]
[367511770,1750837845579,-519.21,0.0001797,2]
[367511772,1750837845589,-3743.46,0.0001797,2]
[367511774,1750837845598,-1480.22,0.0001797,2]
[367511776,1750837845608,-4733.57,0.0001797,2]
[367511778,1750837845617,-460.0,0.0001797,2]
[367511780,1750837845626,-800.55,0.0001797,2]
[367511782,1750837845635,-517.68,0.0001797,2]
[367511784,1750837845645,-5183.74,0.0001797,2]
[367511786,1750837845654,-460.0,0.0001797,2]
[367511788,1750837845663,-893.87,0.0001797,2]
[367511790,1750837845672,-711.73,0.00017971,2]
[367511792,1750837845682,-1175.65,0.00017971,2]
[367511794,1750837845692,-460.0,0.00017971,2]
[367511796,1750837845701,-460.0,0.00017971,2]
[367511798,1750837845710,-1033.35,0.00017971,2]
[367511800,1750837845720,-460.0,0.00017971,2]
[367511802,1750837845729,-460.0,0.00017971,2]
[367511804,1750837845738,-460.0,0.00017971,2]
[367511806,1750837845748,-460.0,0.00017971,2]
[367511808,1750837845757,-1027.55,0.00017971,2]
[367511810,1750837845767,-460.0,0.00017971,2]
[367511812,1750837845776,-460.0,0.00017971,2]
[367511814,1750837845786,-460.0,0.00017971,2]
[367511817,1750837845795,-15762.09,0.00017971,2]
[367511819,1750837845806,-460.0,0.00017971,2]
[367511821,1750837845815,-1899.52,0.00017971,2]
[367511823,1750837845824,-460.0,0.00017971,2]
[367511825,1750837845834,-460.0,0.00017971,2]
[367511827,1750837845843,-830.33,0.00017971,2]
[367511829,1750837845853,-460.0,0.00017972,2]
[367511831,1750837845862,-460.0,0.00017972,2]
[367511833,1750837845871,-460.0,0.00017972,2]
[367511835,1750837845881,-460.0,0.00017972,2]
[367511837,1750837845891,-460.0,0.00017972,2]
[367511838,1750837845901,-460.0,0.00017972,2]
[367511841,1750837845910,-460.0,0.00017972,2]
[367511842,1750837845920,-460.0,0.00017972,2]
[367511844,1750837845929,-460.0,0.00017972,2]
[367511847,1750837845939,-460.0,0.00017972,2]
[367511849,1750837845948,-496.92530948,0.00017972,2]
[367511851,1750837845958,-460.0,0.00017972,2]
[367511853,1750837845967,-460.0,0.00017972,2]
[367511855,1750837845981,-906.84,0.00017972,2]
[367511857,1750837845991,-877.48,0.00017972,2]
[367511859,1750837846000,-460.0,0.00017972,2]
[367511861,1750837846010,-460.0,0.00017972,2]
[367511863,1750837846019,-460.0,0.00017972,2]
[367511865,1750837846028,-245.23808075,0.00017972,2]
[367511867,1750837846039,-460.0,0.00017972,2]
[367511869,1750837846050,-688.52,0.00017972,2]
[367511872,1750837846064,-896.9,0.00017972,2]
[367511873,1750837846074,-460.0,0.00017972,2]
[367511876,1750837846084,-9452.46,0.00017972,2]
[367511878,1750837846093,-460.0,0.00017972,2]
[367511880,1750837846103,-1053.69,0.00017972,2]
[367511882,1750837846112,-1073.51,0.00017972,2]
[367511883,1750837846122,-469.15872436,0.00017972,2]
[367511886,1750837846132,-673.08,0.00017972,2]
[367511888,1750837846143,-460.0,0.00017972,2]
[367511889,1750837846154,-460.0,0.00017972,2]
[367511892,1750837846163,-460.0,0.00017972,2]
[367511894,1750837846173,-460.0,0.00017972,2]
[367511896,1750837846183,-153.0,0.00017973,2]
[367511898,1750837846192,-159.1939926,0.00017973,2]
[367511899,1750837846201,-159.1939926,0.00017973,2]
[367511902,1750837846211,-159.1939926,0.00017973,2]
[367511904,1750837846220,-571.0556217,0.00017973,2]
[367511906,1750837846229,-177.4156324,0.00017973,2]
[367511908,1750837846239,-159.1939926,0.00017973,2]
[367511909,1750837846248,-177.4156324,0.00017973,2]
[367511911,1750837846258,-159.1939926,0.00017973,2]
[367511914,1750837846267,-177.4156324,0.00017973,2]
[367511915,1750837846278,-159.1939926,0.00017973,2]
[367511917,1750837846287,-159.1939926,0.00017973,2]
[367511920,1750837846297,-158.7566926,0.00017973,2]
[367511921,1750837846307,-460.0,0.00017974,2]
[367511924,1750837846316,-460.0,0.00017974,2]
[367511925,1750837846325,-460.0,0.00017974,2]
[367511927,1750837846335,-151.0,0.00017974,2]
[367511929,1750837846344,-151.0,0.00017974,2]
[367511931,1750837846354,-151.0,0.00017974,2]
[367511934,1750837846364,-151.0,0.00017974,2]
[367511937,1750837846374,-442.372958,0.00017974,2]
[367511940,1750837846383,-851.9,0.00017975,2]
[367511943,1750837846396,-460.0,0.00017976,2]
[367511945,1750837846407,-277.73767652,0.00017976,2]
[367511948,1750837846416,-151.0,0.00017979,2]
[367511951,1750837846425,-500.0,0.00017981,2]
[367511954,1750837846434,-1000.0,0.00017984,2]
[367511957,1750837846444,-177.4156324,0.00018,2]
[367511960,1750837846454,-306.0,0.00018,2]
[367511963,1750837846463,-162.9313504,0.00018,2]
[367511966,1750837846473,-574.9477627,0.00018,2]
[367511969,1750837846483,-177.4156324,0.00018,2]
[367511972,1750837846493,-574.9477627,0.00018,2]
[367511974,1750837846502,-574.9477627,0.00018,2]
[367511975,1750837846511,-177.4156324,0.00018,2]
[367511977,1750837846520,-177.4156324,0.00018,2]
[367511979,1750837846530,-574.9477627,0.00018,2]
[367511982,1750837846540,-2675.02513794,0.00018,2]
[367511984,1750837846549,-155.913413,0.00018,2]
[367511986,1750837846559,-151.0,0.00018,2]
[367511988,1750837846568,-151.0,0.00018,2]
[367511990,1750837846579,-151.0,0.00018,2]
[367511991,1750837846589,-151.0,0.00018,2]
[367511994,1750837846599,-151.0,0.00018,2]
[367511996,1750837846608,-510.536274,0.00018,2]
[367511997,1750837846617,-510.536274,0.00018,2]
[367511999,1750837846626,-187.0,0.00018046,2]
[367512001,1750837846636,-187.0,0.00018067,2]
[367512004,1750837846645,-187.0,0.00018105,2]
[367512006,1750837846655,-3536.35467108,0.0001814,2]
[367512008,1750837846664,-237.404975,0.00018141,2]
[367512010,1750837846674,-151.0,0.00018141,2]
[367512012,1750837846685,-151.0,0.00018141,2]
[367512014,1750837846694,-151.0,0.00018141,2]
[367512016,1750837846703,-151.0,0.00018141,2]
[367512018,1750837846713,-151.0,0.00018141,2]
[367512020,1750837846722,-151.0,0.00018141,2]
[367512022,1750837846731,-1000.0,0.00018141,2]
[367512024,1750837846741,-1000.0,0.00018141,2]
[367512026,1750837846750,-371.54184984,0.00018141,2]
[367512028,1750837846760,-2675.02513794,0.00018141,2]
[367512030,1750837846769,-595.4111448,0.00018164,2]
[367512032,1750837846779,-365.1728844,0.00018164,2]
[367512034,1750837846788,-366.0085437,0.00018164,2]
[367512036,1750837846797,-366.0085437,0.00018164,2]
[367512038,1750837846807,-366.0085437,0.00018164,2]
[367512040,1750837846815,-366.0085437,0.00018164,2]
[367512042,1750837846825,-366.0085437,0.00018164,2]
[367512044,1750837846835,-366.0085437,0.00018164,2]
[367512046,1750837846846,-366.0085437,0.00018164,2]
[367512048,1750837846855,-365.7697839,0.00018164,2]
[367512050,1750837846864,-187.0,0.00018178,2]
[367512052,1750837846873,-151.0,0.000182,2]
[367512054,1750837846883,-460.0,0.00018244,2]
[367512055,1750837846893,-519.21,0.00018244,2]
[367512058,1750837846902,-3743.46,0.00018244,2]
[367512060,1750837846911,-1480.22,0.00018244,2]
[367512062,1750837846921,-4733.57,0.00018244,2]
[367512063,1750837846930,-527.75,0.00018244,2]
[367512066,1750837846940,-800.55,0.00018244,2]
[367512067,1750837846949,-517.68,0.00018244,2]
[367512070,1750837846958,-5183.74,0.00018244,2]
[367512072,1750837846968,-460.0,0.00018244,2]
[367512073,1750837846978,-893.87,0.00018244,2]
[367512075,1750837846988,-711.73,0.00018245,2]
[367512077,1750837846997,-1175.65,0.00018245,2]
[367512079,1750837847007,-460.0,0.00018245,2]
[367512081,1750837847016,-460.0,0.00018245,2]
[367512084,1750837847026,-1033.35,0.00018245,2]
[367512086,1750837847035,-460.0,0.00018245,2]
[367512088,1750837847044,-460.0,0.00018245,2]
[367512090,1750837847055,-460.0,0.00018245,2]
[367512092,1750837847066,-460.0,0.00018245,2]
[367512094,1750837847076,-1027.55,0.00018245,2]
[367512096,1750837847086,-460.0,0.00018245,2]
[367512098,1750837847095,-460.0,0.00018245,2]
[367512100,1750837847105,-460.0,0.00018245,2]
[367512102,1750837847114,-15762.09,0.00018245,2]
[367512104,1750837847123,-1899.52,0.00018245,2]
[367512106,1750837847133,-460.0,0.00018245,2]
[367512108,1750837847142,-460.0,0.00018245,2]
[367512110,1750837847152,-830.33,0.00018245,2]
[367512112,1750837847161,-278.88833942,0.00018246,2]
[367512114,1750837847170,-460.0,0.00018246,2]
[367512116,1750837847179,-460.0,0.00018246,2]
[367512118,1750837847189,-460.0,0.00018246,2]
[367512120,1750837847198,-460.0,0.00018246,2]
[367512122,1750837847208,-151.0,0.00018246,2]